Cogmind - Beta 15 @@@ ROGUE MODE // 2025.07.07 @ 15:09:19 Player: LightKnight Result: Destroyed by CL-ANK with CL-ANK's Mallet Performance ------------- Evolutions (1) 500 Regions Visited (6) 1200 Robots Destroyed (93) 465 Value Destroyed (2304) 2304 Prototype IDs (25) 500 Alien Tech Used (0) 0 Bonus (141) 141 TOTAL SCORE: 5110 Bonus ------- High Alert Combat Kills 76 Follower Combat Kills 65 Cogmind --------- Core Integrity 0/400 Matter 208/300 Energy 200/200 System Corruption 0% Temperature Cool (0) Movement Treading (400) Ox3 Location -8/Mines Parts ------- > --- POWER (1) -------- Cold Fusion Reactor > --- PROPULSION (3) --- Light Treads > --- UTILITY (2) ------ High-capacity Storage Unit Improved Target Analyzer > --- WEAPON (3) ------- Improved Assault Rifle 8R-AWN's Boregun > --- INVENTORY (20) --- Reinforced Fission Core Light Treads Light Treads Advanced Myomer Leg Advanced Myomer Leg Experimental Heat Sink High-capacity Matter Pod (200) Advanced Launcher Guidance Computer Advanced Weapon Cycler Advanced Component Analysis Suite System Purifier Thief Drone Bay (0/3) AS-neutralizer No. 17b 8R-AWN's Boregun Rocket Launcher Deploy-a-Sentry Peak State ------------ > --- POWER ------------ Cold Fusion Reactor > --- PROPULSION ------- Light Treads Improved Treads Improved Treads > --- UTILITY ---------- High-capacity Storage Unit Thief Drone Bay > --- WEAPON ----------- Improved Assault Rifle Improved Assault Rifle Minigun > --- INVENTORY -------- Reinforced Fission Core Light Treads Light Treads Light Treads Advanced Myomer Leg Advanced Myomer Leg Experimental Heat Sink High-capacity Matter Pod Advanced Launcher Guidance Computer Improved Target Analyzer Advanced Weapon Cycler Advanced Component Analysis Suite System Purifier Advanced Recalibrator AS-neutralizer No. 17b Minigun 8R-AWN's Boregun 8R-AWN's Boregun Rocket Launcher Deploy-a-Sentry [Rating: 39] Favorites ----------- Power Ion Engine Engine Ion Engine Power Core Light Nuclear Core Reactor Cold Fusion Reactor Propulsion Light Treads Treads Light Treads Leg Aluminum Leg Utility Large Storage Unit Device Thief Drone Bay Storage Large Storage Unit Processor Targeting Computer Protection Medium Armor Plating Weapon Minigun Energy Gun Small Laser Ballistic Gun Minigun Ballistic Cannon Light Cannon Launcher Rocket Launcher Special Melee Weapon Datajack Build | -11 -10 -10 -9 -9 -9 -8 ------- Run | Yrd Mat Min Mat Min Exi Min Slots Evolved 2 | . . . 2 . . . Power . | . . . . . . . Propulsion 1 | . . . 1 . . . Utility . | . . . . . . . Weapon 1 | . . . 1 . . . Parts Attached 58 | . 14 . 23 4 15 2 Power 8 | . 2 . 3 . 3 . Engine 4 | . 2 . 1 . 1 . Core 3 | . . . 2 . 1 . Reactor 1 | . . . . . 1 . Propulsion 21 | . 3 . 12 1 5 . Treads 20 | . 3 . 11 1 5 . Leg 1 | . . . 1 . . . Wheel . | . . . . . . . Hover . | . . . . . . . Flight . | . . . . . . . Utility 11 | . 4 . 3 2 1 1 Device 3 | . 2 . . 1 . . Storage 2 | . 1 . . . 1 . Processor 2 | . 1 . . . . 1 Hackware . | . . . . . . . Protection 4 | . . . 3 1 . . Artifact . | . . . . . . . Weapon 18 | . 5 . 5 1 6 1 Energy Gun 1 | . 1 . . . . . Energy Cannon . | . . . . . . . Ballistic Gun 12 | . 2 . 4 1 4 1 Ballistic Cannon 3 | . 2 . 1 . . . Launcher 1 | . . . . . 1 . Special Weapon . | . . . . . . . Impact Weapon . | . . . . . . . Slashing Weapon . | . . . . . . . Piercing Weapon . | . . . . . . . Special Melee Weapon 1 | . . . . . 1 . Unidentified Prototypes 2 | . . . 1 1 . . Parts Lost 12 | . 2 . . . 3 7 Power 2 | . 1 . . . 1 . Propulsion 5 | . 1 . . . 1 3 Utility 1 | . . . . . 1 . Weapon 4 | . . . . . . 4 Highest Loss Streak 7 | . 1 . . . 3 7 To Critical Strikes 2 | . . . . . . 2 Average Backups 13 | . 9 14 14 15 12 18 Power . | . . 1 1 1 1 1 Propulsion 3 | . 3 3 4 5 4 4 Utility 2 | . . 2 2 2 4 8 Weapon 4 | . 3 7 6 5 3 4 Tool/Special . | . . . . . . . Unused Backups 35 | . 4 2 11 3 4 11 Power 3 | . 1 . 1 . . 1 Propulsion 6 | . 2 . 2 . . 2 Utility 16 | . 1 . 2 2 4 7 Weapon 10 | . . 2 6 1 . 1 Tool/Special . | . . . . . . . Average Slot Usage (%) 98 | . 96 100 99 100 96 99 Engine 7 | . 14 14 9 . 2 . Core 3 | . . . 1 11 5 . Treads 31 | . 27 28 32 33 33 32 Device 3 | . 7 . . . 6 9 Storage 11 | . 14 14 11 11 8 11 Processor 2 | . 3 14 1 . . 1 Protection 5 | . . . 9 10 5 . Ballistic Gun 22 | . 7 . 29 33 29 33 Ballistic Cannon 7 | . 19 28 3 . . . Peak Build Rating 39 | . 8 9 22 27 39 39 Average Rating 18 | . 7 8 19 22 26 38 On Entrance 16 | 6 6 8 9 22 23 39 Naked Turns . | . . . . . . . Heaviest Build 65 | 10 32 31 46 41 65 65 Greatest Support 66 | 20 40 40 66 66 66 66 Greatest Overweight (x) 1 | . 1 . . . 1 . Average Overweight (x) . | . . . . . . . Largest Inventory Capacity 20 | . 15 15 15 15 20 20 Average Capacity 14 | . 12 15 15 15 13 20 Most Carried 20 | . 13 15 15 15 20 20 Average Carried 13 | . 9 14 14 14 12 19 Final Capacity 20 | 8 15 15 15 15 20 20 Final Carried 20 | 6 13 15 15 15 20 16 Class Distribution -------------------- 34% | Mutant 24% | Tank 20% | Scavenger-Tank 13% | Gunner 6% | Scavenger-Gunner Dominant Class ---------------- Mutant | -10/Materials Mutant | -10/Mines Scavenger-Tank | -9/Materials Tank | -9/Mines Gunner | -9/Exiles Gunner | -8/Mines Resources | -11 -10 -10 -9 -9 -9 -8 ----------- Run | Yrd Mat Min Mat Min Exi Min Matter Collected 3088 | 200 587 59 1301 96 755 90 Remotely . | . . . . . . . Salvage Created 3211 | . 757 25 1841 110 329 149 Parts 220 | . 54 2 113 6 29 16 Haulers Intercepted 5 | . 2 . 3 . . . Recyclers Shooed 1 | . 1 . . . . . Parts Field Recycled . | . . . . . . . Retrieved Matter . | . . . . . . . Parts Self-Destructed . | . . . . . . . Prevented . | . . . . . . . Kills | -11 -10 -10 -9 -9 -9 -8 ------- Run | Yrd Mat Min Mat Min Exi Min Combat Hostiles Destroyed 75 | . 19 3 36 2 7 8 Guns 52 | . 6 . 34 2 2 8 Cannons 18 | . 13 3 2 . . . AOE 5 | . . . . . 5 . Classes Destroyed 16 | . 6 . 6 . 3 1 Worker 2 | . . . 2 . . . Builder 3 | . . . 3 . . . Tunneler 1 | . . . 1 . . . Hauler 5 | . 2 . 3 . . . Recycler 2 | . 2 . . . . . Operator 2 | . 1 . 1 . . . Turret 1 | . . . . . 1 . Watcher 6 | . 2 . 4 . . . Swarmer 20 | . 6 3 4 . . 7 Grunt 34 | . 13 . 21 . . . Brawler 2 | . . . 2 . . . Duelist 1 | . . . 1 . . . Sentry 10 | . . . 8 2 . . Hunter 1 | . . . . . . 1 Zionite 3 | . . . . . 3 . Assembled 7 | . . . . . 7 . Best Kill Streak 6 | . 4 3 5 2 6 4 Combat Bots Only 6 | . 4 3 4 2 6 4 Max Kills in Single Turn 3 | . 1 1 3 1 2 2 Gunslinging 1 | . . . 1 . . 1 Exploded 2 | . . . . . 2 . Melee . | . . . . . . . Uniques/NPCs Destroyed 4 | . . . . . 4 . 8R-AWN (-9/Exiles) EX-DEC (-9/Exiles) EX-BIN (-9/Exiles) EX-HEX (-9/Exiles) Combat | -11 -10 -10 -9 -9 -9 -8 -------- Run | Yrd Mat Min Mat Min Exi Min Hostile Shots Fired 266 | . 78 10 103 16 30 29 Missed 75 | . 27 1 32 3 8 4 Hits 191 | . 51 9 71 13 22 25 Melee 18 | . . . 5 . . 13 Projectile 173 | . 51 9 66 13 22 12 Critical Strikes 19 | . . . 1 1 4 13 Damage Taken 3815 | . 484 87 919 188 749 1388 Core 485 | . . 17 68 . 39 361 Absorbed by Shields . | . . . . . . . Ignored by Resistances 49 | . . . 49 . . . Regen/Repaired (Parts) 187 | . 75 . 112 . . . Core Remaining (%) 96 | 100 . 93 . . . . Volleys Fired 245 | . 76 5 94 6 48 16 Largest 3 | . 2 2 3 3 3 3 Hottest 90 | . 60 60 90 73 73 71 Shots Fired 608 | . 150 10 276 18 107 47 Gun 476 | . 56 . 256 18 99 47 Cannon 124 | . 94 10 20 . . . Launcher 8 | . . . . . 8 . Special . | . . . . . . . Kinetic 593 | . 143 10 276 18 99 47 Thermal 7 | . 7 . . . . . Explosive 8 | . . . . . 8 . Electromagnetic . | . . . . . . . Robot Hit Streak 13 | . 10 2 12 9 12 13 Robot Miss Streak 4 | . 4 3 3 1 2 3 Penetration Max . | . . . . . . . Secondary Targets 8 | . 1 . 4 1 . 2 Max Gunslinging Chain 1 | . 1 . 1 1 . 1 Shots Hit Robots 376 | . 81 4 174 15 70 32 Core Hits 146 | . 32 3 63 4 30 14 Critical Kills 1 | . . . . . 1 . Critical Parts Destroyed 1 | . . . 1 . . . Critical Strikes 6 | . 1 . 4 . 1 . Destroy 3 | . . . 2 . 1 . Blast 3 | . 1 . 2 . . . Melee Attacks 4 | . . . . . 4 . Impact . | . . . . . . . Slashing . | . . . . . . . Piercing . | . . . . . . . Sneak Attacks 4 | . . . . . 4 . Combat Hostiles . | . . . . . . . Follow-up Attacks . | . . . . . . . Damage Inflicted 6458 | . 1249 83 3115 266 1325 420 Guns 4811 | . 330 . 2805 249 1007 420 Cannons 1173 | . 876 72 225 . . . Explosions 318 | . . . . . 318 . Melee . | . . . . . . . Ramming 156 | . 43 11 85 17 . . Kinetic 5962 | . 1184 72 3030 249 1007 420 Thermal 22 | . 22 . . . . . Explosive 318 | . . . . . 318 . Electromagnetic . | . . . . . . . Impact . | . . . . . . . Slashing . | . . . . . . . Piercing . | . . . . . . . Highest Corruption . | . . . . . . . Average Corruption . | . . . . . . . Corruption Purged . | . . . . . . . Corruption Blocked . | . . . . . . . Overload Shots . | . . . . . . . Overflow Damage 30 | . 20 . . . 10 . Projectiles 20 | . 20 . . . . . Explosions 10 | . . . . . 10 . Melee . | . . . . . . . Knockbacks 9 | . 8 . 1 . . . Impact . | . . . . . . . Kinetic 9 | . 8 . 1 . . . Secondary . | . . . . . . . Self-Inflicted Damage . | . . . . . . . Shots . | . . . . . . . Rammed 24 | . 8 2 10 4 . . Targets Rammed 24 | . 8 2 10 4 . . Kicked . | . . . . . . . Crushed . | . . . . . . . Highest Temperature 241 | . 12 . 241 166 75 . Average Temperature 61 | . 6 . 64 87 25 . Received Heat Transfer 582 | . 165 . 345 72 . . Siege Activations . | . . . . . . . Martial Activations . | . . . . . . . Shielding Activations . | . . . . . . . Robots Disrupted . | . . . . . . . Combat Hostiles . | . . . . . . . Robots Corrupted . | . . . . . . . Combat Hostiles . | . . . . . . . Parts Fried . | . . . . . . . Impact Corruptions . | . . . . . . . Robots Melted . | . . . . . . . Combat Hostiles . | . . . . . . . Parts Melted . | . . . . . . . Heat Transferred 50 | . 50 . . . . . Parts Sabotaged . | . . . . . . . Parts Stolen . | . . . . . . . Parts Stripped . | . . . . . . . Power Chain Reactions . | . . . . . . . Alert | -11 -10 -10 -9 -9 -9 -8 ------- Run | Yrd Mat Min Mat Min Exi Min Maximum Alert Level 2 | . 1 . 2 . . . Low Security (%) 61 | . 70 100 26 100 . 100 Level 1 29 | . 29 . 50 . . . Level 2 9 | . . . 22 . . . Level 3 . | . . . . . . . Level 4 . | . . . . . . . Level 5 . | . . . . . . . High Security . | . . . . . . . Max Security . | . . . . . . . Peak Influence 494 | . 290 69 494 186 . 165 Initial 186 | . . 69 . 186 . . Average 151 | . 118 13 256 49 . 103 Influence Increases 2223 | . 627 70 1281 40 . 205 Destroy 0b10 Robot/C 1420 | . 380 60 780 40 . 160 Destroy 0b10 Robot/NC 110 | . 35 . 75 . . . Destroy Leader 344 | . 98 10 206 . . 30 Allied During Kill 23 | . . . 23 . . . Successful Hack 44 | . 19 . 25 . . . Select Force Hacks 120 | . 60 . 60 . . . Disable Machine 120 | . 30 . 75 . . 15 Destroy Structure 12 | . 5 . 7 . . . Lose Combat Pursuer 30 | . . . 30 . . . Influence Decreases 2198 | . 450 247 803 518 . 180 Entered New Map 400 | . . 108 . 292 . . Time Decay 1469 | . 430 139 624 206 . 70 Lost Part 90 | . 20 . . . . 70 Lost Ally 89 | . . . 29 20 . 40 Purge Threat 150 | . . . 150 . . . Squads Dispatched 13 | . 6 . 7 . . . Investigation 6 | . 3 . 3 . . . Extermination . | . . . . . . . Reinforcement 6 | . 3 . 3 . . . Assault 1 | . . . 1 . . . Garrison . | . . . . . . . Intercept . | . . . . . . . Searches Triggered . | . . . . . . . Construction Impeded 2 | . . . 2 . . . Haulers Reinforced . | . . . . . . . Active Scanning Responses . | . . . . . . . Cargo Convoy Interrupts . | . . . . . . . Stealth | -11 -10 -10 -9 -9 -9 -8 --------- Run | Yrd Mat Min Mat Min Exi Min Distress Signals 7 | . 3 . 4 . . . Communications Jammed . | . . . . . . . Distress Signals . | . . . . . . . Times Spotted 144 | . 31 3 54 2 46 8 Peak Tracking Total 9 | . 4 3 5 2 9 5 Tactical Retreats 28 | . . . 2 . 26 . Traps | -11 -10 -10 -9 -9 -9 -8 ------- Run | Yrd Mat Min Mat Min Exi Min Traps Triggered 3 | . 3 . . . . . Indirectly . | . . . . . . . Trap Hack Attempts . | . . . . . . . Triggered . | . . . . . . . Disarmed . | . . . . . . . Reprogrammed . | . . . . . . . Reused . | . . . . . . . Traps Extracted . | . . . . . . . Installed . | . . . . . . . Triggered . | . . . . . . . Machines | -11 -10 -10 -9 -9 -9 -8 ---------- Run | Yrd Mat Min Mat Min Exi Min Machines Disabled 12 | . 2 . 5 . 4 1 Max in Single Turn 1 | . 1 . 1 . 1 1 Machines Repaired . | . . . . . . . Machines Dismantled . | . . . . . . . Machines Sabotaged . | . . . . . . . Overloaded Fab Kills . | . . . . . . . Hacking | -11 -10 -10 -9 -9 -9 -8 --------- Run | Yrd Mat Min Mat Min Exi Min Machines Accessed 25 | . 8 1 14 1 1 . Terminals 15 | . 5 . 10 . . . Fabricators . | . . . . . . . Repair Stations 3 | . 1 . 2 . . . Recycling Units 4 | . 2 . 2 . . . Scanalyzers . | . . . . . . . Garrison Access . | . . . . . . . Total Hacks 57 | . 21 1 33 1 1 . Successful 33 | . 11 1 19 1 1 . Failed 23 | . 10 . 13 . . . Catastrophic 3 | . . . 3 . . . Database Lockouts 1 | . . . 1 . . . Manual 35 | . 15 . 20 . . . Terminals 43 | . 17 . 26 . . . Fabricators . | . . . . . . . Repair Stations 7 | . 2 . 5 . . . Recycling Units 4 | . 2 . 2 . . . Scanalyzers . | . . . . . . . Garrison Access . | . . . . . . . Terminal Hacks 15 | . 4 1 8 1 1 . Record 1 | . . . . . 1 . Robot Analysis 3 | . 2 . 1 . . . Prototype ID Bank 6 | . 1 . 5 . . . Open Door 2 | . . 1 . 1 . . Terminal Index 1 | . . . 1 . . . Unreport Threat 1 | . . . 1 . . . Investigation Status 1 | . 1 . . . . . Fabricator Hacks . | . . . . . . . Repair Station Hacks 6 | . 2 . 4 . . . Scan Component 3 | . 1 . 2 . . . Repair 3 | . 1 . 2 . . . Recycling Unit Hacks . | . . . . . . . Scanalyzer . | . . . . . . . Garrison Access Hacks . | . . . . . . . Unauthorized Hacks 12 | . 5 . 7 . . . Terminals 8 | . 3 . 5 . . . Botnet 7 | . 3 . 4 . . . Disrupt 1 | . . . 1 . . . Fabricators . | . . . . . . . Repair Stations . | . . . . . . . Recycling Units 4 | . 2 . 2 . . . Tunnel 4 | . 2 . 2 . . . Scanalyzers . | . . . . . . . Garrison Access . | . . . . . . . Data Cores Recovered 2 | . 1 . 1 . . . Used 1 | . . . 1 . . . Hacking Detections 17 | . 6 . 11 . . . Full Trace Events 1 | . 1 . . . . . Feedback Events . | . . . . . . . Feedback Blocked . | . . . . . . . Robot Schematics Acquired . | . . . . . . . Robots Built . | . . . . . . . Authchips . | . . . . . . . Time . | . . . . . . . Total Robot Build Rating . | . . . . . . . Part Schematics Acquired . | . . . . . . . Parts Built . | . . . . . . . Authchips . | . . . . . . . Time . | . . . . . . . Total Part Build Rating . | . . . . . . . Parts Repaired 3 | . 1 . 2 . . . Time 65 | . 13 . 52 . . . Parts Recycled . | . . . . . . . Recycled Matter . | . . . . . . . Retrieved Matter . | . . . . . . . Retrieved Components . | . . . . . . . Parts Scanalyzed . | . . . . . . . Part Schematics Acquired . | . . . . . . . Parts Damaged . | . . . . . . . Bothacking | -11 -10 -10 -9 -9 -9 -8 ------------ Run | Yrd Mat Min Mat Min Exi Min Used RIF Installer . | . . . . . . . Robots Hacked 4 | . . . . . 4 . Non-combat 3 | . . . . . 3 . Combat 1 | . . . . . 1 . Robot Hacks Applied 4 | . . . . . 4 . parse_system 4 | . . . . . 4 . Relay Couplers Released . | . . . . . . . Fabnet Peak Effective % . | . . . . . . . Robots Rewired . | . . . . . . . Allies Hacked . | . . . . . . . Hacks Repelled . | . . . . . . . Allies | -11 -10 -10 -9 -9 -9 -8 -------- Run | Yrd Mat Min Mat Min Exi Min Total Allies 4 | . . 3 . 1 . . Largest Group 3 | . . 3 3 1 . . Highest-Rated Group 40 | . . 40 40 31 . . Highest-Rated Ally 31 | . . 16 16 31 . . Total Orders 3 | . . . . . 3 . RETURN 3 | . . . . . 3 . Ally Attacks 173 | . . . 29 2 141 1 Total Damage 1193 | . . . 263 42 888 . Kills 7 | . . . 4 . 3 . Allies Corrupted . | . . . . . . . Allies Melted . | . . . . . . . Intel | -11 -10 -10 -9 -9 -9 -8 ------- Run | Yrd Mat Min Mat Min Exi Min Active Infowar (turns) . | . . . . . . . Robot Analysis Total 3 | . 2 . 1 . . . Derelict Logs Recovered 3 | . . 2 . 1 . . Drone Launches 21 | . . . . . 19 2 Drone Recoveries 18 | . . . . . 18 . Exploration | -11 -10 -10 -9 -9 -9 -8 ------------- Run | Yrd Mat Min Mat Min Exi Min Turns Passed 7703 | . 1588 781 2331 783 2072 148 Spaces Moved 3842 | 1 720 473 1175 454 961 58 Core . | . . . . . . . Treads 3836 | . 715 473 1175 454 961 58 Legs 6 | 1 5 . . . . . Wheels . | . . . . . . . Hover . | . . . . . . . Flight . | . . . . . . . Fastest Speed 120 | 120 120 160 160 160 160 160 Average Speed 162 | 120 160 160 160 160 170 160 Slowest Speed 240 | 120 240 160 160 160 240 160 Overloaded Moves . | . . . . . . . Propulsion Burnouts . | . . . . . . . Robots Hopped . | . . . . . . . Potential Cave-ins . | . . . . . . . Cave-ins Triggered . | . . . . . . . Exploration Rate (%) 67 | 2 84 92 99 98 84 15 Regions Visited 6 Branch Regions 4 Pre-discovered Areas 5 | . 2 . 2 . 1 . Known Exits Taken . | . . . . . . . Unknown Exits Taken 6 | 1 1 1 1 1 1 . Scrap Searched 5 | . . 3 . 2 . . Spaces Dug . | . . . . . . . Terrain Destroyed 11 | . . . . . 11 . Melee . | . . . . . . . Projectile . | . . . . . . . AOE 11 | . . . . . 11 . Terrain Rammed . | . . . . . . . Walls Destroyed . | . . . . . . . Machines Disabled . | . . . . . . . Actions | -11 -10 -10 -9 -9 -9 -8 --------- Run | Yrd Mat Min Mat Min Exi Min Total 4861 | . 1004 491 1471 501 1313 81 Wait 527 | . 167 . 115 21 222 2 Move 3836 | . 719 472 1174 453 960 58 Hop . | . . . . . . . Pick Up 57 | . 6 7 19 4 21 . Fast Attach 23 | . 10 . 7 2 4 . Attach 15 | . 4 . 2 . 5 4 Detach 9 | . 6 . 2 . 1 . Swap 46 | . 4 . 16 3 22 1 Drop 75 | . 4 5 32 8 26 . Fire 245 | . 76 5 94 6 48 16 Melee 4 | . . . . . 4 . Ram . | . . . . . . . Kick . | . . . . . . . Crush 24 | . 8 2 10 4 . . Escape Stasis . | . . . . . . . Rewire . | . . . . . . . Trap . | . . . . . . . Miscellaneous . | . . . . . . . Route ------- -11/Scrapyard -10/Materials (discovered 4 exits: *Mat x3 / *Min) -10/Mines (discovered 2 exits: *Mat x2) -9/Materials (discovered 5 exits: [*Mat x3] / *Min x2) -9/Mines (discovered 2 exits: [*Mat] / *Exi) -9/Exiles (discovered 2 exits: [*Min x2]) -8/Mines History --------- Turn | Location | Event 1 | -11/Scrapyard | Discovered new exit (range 0) 1 | -11/Scrapyard | Entered Materials 313 | -10/Materials | Discovered new exit (range 8) 328 | -10/Materials | Build established: Mutant 630 | -10/Materials | Discovered new exit (range 6) 1076 | -10/Materials | Discovered new exit (range 15) 1270 | -10/Materials | Discovered new exit (range 5) 1510 | -10/Materials | Repaired Lgt. Treads 1589 | -10/Materials | Entered Mines 1658 | -10/Mines | Discovered new exit (range 12) 1736 | -10/Mines | Learned Materials garrison access intel 1798 | -10/Mines | Met a Derelict who couldn't figure out how to use a Trap Extractor 2087 | -10/Mines | Discovered new exit (range 6) 2156 | -10/Mines | Assisted by bots powering up and referring to "LRC-V3" 2370 | -10/Mines | Entered Materials 2370 | -9/Materials | Accompanied by 3 allies 2370 | -9/Materials | Evolved 2 slots: Propulsion x1, Weapon x1 2505 | -9/Materials | Repaired Lgt. Treads 2805 | -9/Materials | Repaired Lgt. Treads 2934 | -9/Materials | Build established: Tank 3097 | -9/Materials | Discovered new exit (range 15) 3296 | -9/Materials | Discovered new exit (range 14) 3325 | -9/Materials | Central database locked down 3724 | -9/Materials | Build established: Scavenger-Tank 3970 | -9/Materials | First assault squad dispatched 4216 | -9/Materials | Discovered new exit (range 11) 4419 | -9/Materials | Discovered new exit (range 16) 4559 | -9/Materials | Discovered new exit (range 5) 4701 | -9/Materials | Entered Mines 4704 | -9/Mines | Met a Derelict bent on vengeance 4704 | -9/Mines | Received a Mining Laser from a helpful Derelict 4743 | -9/Mines | Found DCF Scrap (10 items) 4884 | -9/Mines | Build established: Tank 5138 | -9/Mines | Deemed a non-threat by the Exiles lab entrance 5138 | -9/Mines | Discovered new exit (range 5) 5220 | -9/Mines | Found a hidden stash of uninstalled traps 5288 | -9/Mines | Learned Materials stockpile data 5338 | -9/Mines | Discovered new exit (range 6) 5352 | -9/Mines | Found the Drone Emporium 5359 | -9/Mines | Found Prototype Device 5359 | -9/Mines | Identified Thief Drone Bay 5484 | -9/Mines | Entered Exiles 5508 | -9/Exiles | Discovered new exit (range 15) 5528 | -9/Exiles | Met 8R-AWN 5550 | -9/Exiles | Met EX-HEX 5687 | -9/Exiles | Met EX-BIN 5737 | -9/Exiles | Met EX-DEC 5780 | -9/Exiles | Learned location of Zion (-6) 5877 | -9/Exiles | Build established: Mutant 6120 | -9/Exiles | Attacked by the Exiles 6331 | -9/Exiles | Build established: Scavenger-Tank 6403 | -9/Exiles | Allies destroyed 8R-AWN 6459 | -9/Exiles | Found AS-neutralizer No. 17b 6496 | -9/Exiles | Found 8R-AWN's Boregun 6499 | -9/Exiles | Found 8R-AWN's Boregun 6621 | -9/Exiles | Lost 3 parts (1p1n1u) 6911 | -9/Exiles | Destroyed EX-DEC 6933 | -9/Exiles | Build established: Scavenger-Gunner 7002 | -9/Exiles | Allies destroyed EX-BIN 7014 | -9/Exiles | Allies destroyed EX-HEX 7288 | -9/Exiles | Found Deploy-a-Sentry 7331 | -9/Exiles | Build established: Gunner 7349 | -9/Exiles | Found System Purifier 7543 | -9/Exiles | Discovered new exit (range 10) 7556 | -9/Exiles | Left Exiles lab with Deploy-a-Sentry 7556 | -9/Exiles | Entered Mines 7674 | -8/Mines | CL-ANK came to Exiles' defense 7696 | -8/Mines | Core integrity fell below 50% 7704 | -8/Mines | Core integrity fell below 20% 7704 | -8/Mines | Destroyed by CL-ANK with CL-ANK's Mallet Last Messages --------------- 07643_ Penetrated by Slug. 07645_ H-55 Commando destroyed. 07652_ Acquired 22 matter. 07674_ CL-ANK: "I came as fast as I could... Wait, it was you!" 07678_ Thief Drone released from Thief Drone Bay. 07679_ Thief Drone suffers critical hit (Smash). 07679_ Thief Drone destroyed. 07683_ Thief Drone suffers critical hit (Smash). 07683_ Thief Drone destroyed. 07691_ Minigun destroyed. 07691_ Imp. Treads destroyed. 07695_ Imp. Assault Rifle destroyed. 07697_ Imp. Treads destroyed. 07700_ Critical hit (Smash). 07700_ Imp. Assault Rifle destroyed. 07701_ Critical hit (Smash). 07701_ Lgt. Treads destroyed. 07701_ Imp. Assault Rifle destroyed. 07703_ HV Slug penetrates CL-ANK. 07703_ HV Slug penetrates Laser Drill. Map ----- +----------------------------------------------------+ | ???????????????????????????????????? | | ???????????????????????????????????? | | ???????????????????????????????????? | | ???????????????????????????????????? | | ???????????????????????????????????? | | ???????????????????????????????????? | | ???????????????????????????????????? | | ???????????????????????????????????? | | ???????????????????????????????????? | | ???????????????????????????????????? | | ???????????????????????????????????? | | ???????????????????????????????????? | | ???????????????????????????????????? | | ???????????????????????????????????? | | ???????????????????????????????????? | | ??????##########???????????????????? | | ??????# " " =#######?????????????? | | ??????# " *=[% ##????????????? | | ??????# " [= = ####?????????? | | ??????# [#### ##????????? | | ??????# #??# #######??? | | ??????# #??## | | ??????# % #???# #######???? | | ??????# #???# ####?????????? | | ??????#####b####???# ##???????????? | | ??????????#@#??????# #???????????? | | ??????????#=#??????### #????####???? | | ????????###%#####???## #????# #???? | | ????????# #??## =###### #??? | | ????????# """ #?## * [ #???? | | ????????# """ #?# *#######???? | | ????????# """ #?# #?????????? | | ????????# #?# [ =#?????????? | | ????????# """ #?## % ##?????????? | | ????????# """ #??# =##??????????? | | ????????# """ #??#####???????????? | | ????????# #??????????????????? | | ????????# #??????????????????? | | ????????#########??????????????????? | | ???????????????????????????????????? | | ???????????????????????????????????? | | | | | | | | | | | | | | | | | | | +----------------------------------------------------+ Best States ------------- Heat Dissipation 35 Energy Generation 19 Energy Capacity 265 Matter Stores 300 Matter Capacity 300 Sight Range 16 Terrain Scan Density 10 Armor Coverage 225 Resistance: KI 20 Evasion (%) 40 Targeting Accuracy 5 Target Analysis 6 Recoil Reduction 3 Item Schematics ----------------- None Robot Schematics ------------------ None Fabricated ------------ Nothing Repaired ---------- Lgt. Treads | 46% | -10/Materials Lgt. Treads | 60% | -9/Materials Lgt. Treads | 60% | -9/Materials Alien Tech Used ----------------- None Achievements -------------- None Challenges ------------ None Game ------ Seed ExplosiveDirectedComputer Manual? 0 Play Time 00:46:32 Cumulative 373.1 hours Start 2025.07.07 @ 14:24:39 End 2025.07.07 @ 15:09:19 Sessions 1 Manual Loads 0 Difficulty Rogue Special Mode None Game No. 252 Rogue 252 Adventurer 0 Explorer 0 Win Type - Total 27 Types 21/0/4/2/0/0/0/0/0/0 Lore% 90 Gallery% 81 Achievement% 67 Wizard Run 0 Options --------- Layout 0 ASCII 1 Keyboard 1 Movement Arrows Keybinds 0 Fullscreen 2 Font 18/Terminus Map View 76x50 Zoom Use 0% Tactical HUD 1 Map Filters NONE Filters NONE Steam 1 RUN: 8a2e0464-7c1f-4730-ad89-87aaa5940705